[Event "*** SCC Grand Prix: Titled Tuesday Blitz"]
[Site "Chess.com"]
[Date "2020.10.06"]
[Round "1"]
[White "Ural_bogatyr"]
[Black "VitaliyBernadskiy"]
[Result "0-1"]
[WhiteElo "2377"]
[BlackElo "2729"]
[TimeControl "180+1"]
[EndTime "10:07:29 PDT"]
[Termination "VitaliyBernadskiy won on time"]

1. e4 {[%clk 0:03:00.9]} 1... e5 {[%clk 0:02:56.4]} 2. Nf3 {[%clk 0:03:00.8]}
2... Nc6 {[%clk 0:02:54.9]} 3. Bb5 {[%clk 0:03:01.2]} 3... a6 {[%clk 0:02:53.6]}
4. Bxc6 {[%clk 0:03:01.7]} 4... dxc6 {[%clk 0:02:53.6]} 5. O-O {[%clk
0:03:02.6]} 5... Bd6 {[%clk 0:02:46.4]} 6. d4 {[%clk 0:03:01.7]} 6... exd4
{[%clk 0:02:44]} 7. Qxd4 {[%clk 0:03:02.6]} 7... f6 {[%clk 0:02:41.6]} 8. Re1
{[%clk 0:03:02.4]} 8... Qe7 {[%clk 0:02:39.1]} 9. Nc3 {[%clk 0:02:57.3]} 9...
Be6 {[%clk 0:02:32.2]} 10. e5 {[%clk 0:02:43.7]} 10... fxe5 {[%clk 0:02:29.8]}
11. Nxe5 {[%clk 0:02:41.2]} 11... Nf6 {[%clk 0:02:30.2]} 12. Nc4 {[%clk
0:02:08.7]} 12... O-O {[%clk 0:02:12.3]} 13. Nxd6 {[%clk 0:02:08.1]} 13... cxd6
{[%clk 0:02:11.8]} 14. Bf4 {[%clk 0:02:07.5]} 14... Rad8 {[%clk 0:01:58.3]} 15.
Rad1 {[%clk 0:02:06.3]} 15... Qf7 {[%clk 0:01:47.1]} 16. f3 {[%clk 0:01:38.5]}
16... d5 {[%clk 0:01:28.1]} 17. Na4 {[%clk 0:01:22.8]} 17... Bf5 {[%clk
0:01:26.2]} 18. Rd2 {[%clk 0:01:02.6]} 18... Qg6 {[%clk 0:01:25.6]} 19. Nc5
{[%clk 0:00:54.1]} 19... Nh5 {[%clk 0:01:09.1]} 20. Nxb7 {[%clk 0:00:38.5]}
20... Rde8 {[%clk 0:00:52.2]} 21. Rxe8 {[%clk 0:00:29.5]} 21... Rxe8 {[%clk
0:00:53.1]} 22. Nd6 {[%clk 0:00:29.4]} 22... Qe6 {[%clk 0:00:27.8]} 23. Rd1
{[%clk 0:00:14.5]} 23... Bxc2 {[%clk 0:00:25.3]} 24. Rc1 {[%clk 0:00:12.1]}
24... Rf8 {[%clk 0:00:24.4]} 25. Be5 {[%clk 0:00:09.3]} 25... c5 {[%clk
0:00:19.3]} 26. Qc3 {[%clk 0:00:04.1]} 26... d4 {[%clk 0:00:14.6]} 27. Qc4
{[%clk 0:00:03.8]} 27... Qxc4 {[%clk 0:00:13.6]} 28. Nxc4 {[%clk 0:00:04.7]}
28... d3 {[%clk 0:00:13]} 29. Bd6 {[%clk 0:00:04.3]} 29... Rd8 {[%clk 0:00:11]}
30. Kf2 {[%clk 0:00:02.8]} 30... Rxd6 {[%clk 0:00:08.4]} 31. Nxd6 {[%clk
0:00:01.8]} 31... d2 {[%clk 0:00:08.9]} 32. Rd1 {[%clk 0:00:01.2]} 32... Bxd1
{[%clk 0:00:08.7]} 33. Ke3 {[%clk 0:00:02.1]} 33... Bxf3 {[%clk 0:00:08.6]} 34.
Kxd2 {[%clk 0:00:02.5]} 34... Bxg2 {[%clk 0:00:08.6]} 35. Kc3 {[%clk 0:00:02.4]}
35... Bd5 {[%clk 0:00:08.7]} 36. Nf5 {[%clk 0:00:01.8]} 36... Nf6 {[%clk
0:00:09]} 0-1

[Event "*** SCC Grand Prix: Titled Tuesday Blitz"]
[Site "Chess.com"]
[Date "2020.10.06"]
[Round "1"]
[White "Vuk2000"]
[Black "c_r_e_e_p_e_r"]
[Result "1-0"]
[WhiteElo "2699"]
[BlackElo "2363"]
[TimeControl "180+1"]
[EndTime "10:07:29 PDT"]
[Termination "Vuk2000 won on time"]

1. d4 {[%clk 0:02:59.5]} 1... Nf6 {[%clk 0:02:59]} 2. Bg5 {[%clk 0:02:59.2]}
2... Ne4 {[%clk 0:02:57.3]} 3. Bf4 {[%clk 0:02:59.1]} 3... d5 {[%clk 0:02:56.9]}
4. e3 {[%clk 0:02:58.5]} 4... Bf5 {[%clk 0:02:53.7]} 5. f3 {[%clk 0:02:56]} 5...
Nf6 {[%clk 0:02:53.1]} 6. c4 {[%clk 0:02:52.6]} 6... e6 {[%clk 0:02:52.9]} 7.
Nc3 {[%clk 0:02:52.3]} 7... Bd6 {[%clk 0:02:45.9]} 8. g4 {[%clk 0:02:36.5]} 8...
Bg6 {[%clk 0:02:36.8]} 9. Nh3 {[%clk 0:02:24.2]} 9... c6 {[%clk 0:02:23.3]} 10.
Qb3 {[%clk 0:02:04.3]} 10... Bxf4 {[%clk 0:01:38.5]} 11. Nxf4 {[%clk 0:02:05.2]}
11... O-O {[%clk 0:01:35]} 12. h4 {[%clk 0:01:56.5]} 12... dxc4 {[%clk
0:00:52.1]} 13. Qxb7 {[%clk 0:01:33]} 13... Qb6 {[%clk 0:00:44.5]} 14. Qxb6
{[%clk 0:01:27.1]} 14... axb6 {[%clk 0:00:45.1]} 15. Bxc4 {[%clk 0:01:03.8]}
15... Nbd7 {[%clk 0:00:42.3]} 16. h5 {[%clk 0:00:57.8]} 16... Bc2 {[%clk
0:00:42.3]} 17. Kd2 {[%clk 0:00:57.9]} 17... Ba4 {[%clk 0:00:36.4]} 18. b3
{[%clk 0:00:58.2]} 18... e5 {[%clk 0:00:27.6]} 19. Ne6 {[%clk 0:00:41.6]} 19...
fxe6 {[%clk 0:00:09.3]} 20. Bxe6+ {[%clk 0:00:42.5]} 20... Kh8 {[%clk
0:00:09.9]} 21. Nxa4 {[%clk 0:00:36.1]} 21... exd4 {[%clk 0:00:09.4]} 22. exd4
{[%clk 0:00:37]} 22... b5 {[%clk 0:00:09.4]} 23. Nc3 {[%clk 0:00:30.8]} 23...
Nb6 {[%clk 0:00:09.7]} 24. g5 {[%clk 0:00:17.4]} 24... Nfd5 {[%clk 0:00:10]} 25.
Nxd5 {[%clk 0:00:17.4]} 25... cxd5 {[%clk 0:00:08]} 26. Bg4 {[%clk 0:00:15.6]}
26... Rf4 {[%clk 0:00:07.8]} 27. Ke3 {[%clk 0:00:14.8]} 27... Raf8 {[%clk
0:00:08.3]} 28. Rhc1 {[%clk 0:00:14.7]} 28... Na8 {[%clk 0:00:06.4]} 29. Rc6
{[%clk 0:00:14.4]} 29... b4 {[%clk 0:00:03.1]} 30. Rac1 {[%clk 0:00:14.2]} 30...
R4f7 {[%clk 0:00:02.7]} 31. Rc8 {[%clk 0:00:14.2]} 31... Nb6 {[%clk 0:00:02.9]}
32. Rxf8+ {[%clk 0:00:13.9]} 32... Rxf8 {[%clk 0:00:03.8]} 33. Rc6 {[%clk
0:00:13.8]} 33... Rb8 {[%clk 0:00:03.4]} 34. g6 {[%clk 0:00:11.5]} 34... hxg6
{[%clk 0:00:03]} 35. hxg6 {[%clk 0:00:11.5]} 35... Kg8 {[%clk 0:00:03.1]} 36. f4
{[%clk 0:00:09.7]} 36... Re8+ {[%clk 0:00:02.3]} 37. Be6+ {[%clk 0:00:07.5]}
37... Rxe6+ {[%clk 0:00:02.4]} 38. Rxe6 {[%clk 0:00:08.4]} 38... Nd7 {[%clk
0:00:01.5]} 39. Re8+ {[%clk 0:00:08.3]} 39... Nf8 {[%clk 0:00:02.1]} 40. f5
{[%clk 0:00:08.8]} 1-0

[Event "*** SCC Grand Prix: Titled Tuesday Blitz"]
[Site "Chess.com"]
[Date "2020.10.06"]
[Round "1"]
[White "Bastiandash"]
[Black "GelmanAlexander"]
[Result "1-0"]
[WhiteElo "2273"]
[BlackElo "2556"]
[TimeControl "180+1"]
[EndTime "10:07:35 PDT"]
[Termination "Bastiandash won by resignation"]

1. d4 {[%clk 0:03:00.9]} 1... Nf6 {[%clk 0:02:59.1]} 2. Nf3 {[%clk 0:03:00.8]}
2... c5 {[%clk 0:02:58.7]} 3. c3 {[%clk 0:02:57.6]} 3... b6 {[%clk 0:02:58.4]}
4. Bg5 {[%clk 0:02:55.9]} 4... Bb7 {[%clk 0:02:58.1]} 5. e3 {[%clk 0:02:55.9]}
5... d6 {[%clk 0:02:52.9]} 6. Nbd2 {[%clk 0:02:55]} 6... Nbd7 {[%clk 0:02:52.6]}
7. Bd3 {[%clk 0:02:53.7]} 7... h6 {[%clk 0:02:52.4]} 8. Bh4 {[%clk 0:02:44.4]}
8... g5 {[%clk 0:02:52.2]} 9. Bg3 {[%clk 0:02:44.7]} 9... Rg8 {[%clk 0:02:43.7]}
10. Qe2 {[%clk 0:02:24.5]} 10... a6 {[%clk 0:02:34.9]} 11. a4 {[%clk 0:02:23.8]}
11... h5 {[%clk 0:02:30.6]} 12. h3 {[%clk 0:02:16.1]} 12... g4 {[%clk
0:02:25.7]} 13. hxg4 {[%clk 0:02:14.1]} 13... hxg4 {[%clk 0:02:26.5]} 14. Nh4
{[%clk 0:02:14.3]} 14... Nh5 {[%clk 0:02:19.8]} 15. e4 {[%clk 0:02:02.7]} 15...
Nxg3 {[%clk 0:02:15.7]} 16. fxg3 {[%clk 0:02:03.6]} 16... e6 {[%clk 0:02:13.6]}
17. O-O {[%clk 0:02:01.6]} 17... cxd4 {[%clk 0:01:52.6]} 18. cxd4 {[%clk
0:02:02.5]} 18... Qg5 {[%clk 0:01:48.5]} 19. Rf4 {[%clk 0:01:48.8]} 19... Bg7
{[%clk 0:01:43]} 20. Nb3 {[%clk 0:01:24.2]} 20... Nf6 {[%clk 0:01:07.4]} 21. Kh2
{[%clk 0:00:45.1]} 21... Bh8 {[%clk 0:00:59.7]} 22. Raf1 {[%clk 0:00:42.3]}
22... Rf8 {[%clk 0:00:45]} 23. a5 {[%clk 0:00:35.9]} 23... b5 {[%clk 0:00:43.7]}
24. Rc1 {[%clk 0:00:23.8]} 24... Kd7 {[%clk 0:00:34.6]} 25. e5 {[%clk
0:00:20.5]} 25... Nd5 {[%clk 0:00:30.8]} 26. Bxb5+ {[%clk 0:00:20.2]} 26... Kd8
{[%clk 0:00:26]} 27. Rff1 {[%clk 0:00:14.4]} 27... axb5 {[%clk 0:00:19.1]} 28.
Qxb5 {[%clk 0:00:15.3]} 28... Qe7 {[%clk 0:00:18.2]} 29. exd6 {[%clk 0:00:13.6]}
29... Qd7 {[%clk 0:00:18.5]} 30. Qc5 {[%clk 0:00:06.8]} 30... Rc8 {[%clk
0:00:16.4]} 31. Qa7 {[%clk 0:00:06.4]} 31... Rxc1 {[%clk 0:00:15.6]} 32. Rxc1
{[%clk 0:00:07.3]} 32... f5 {[%clk 0:00:14.7]} 33. Qb8+ {[%clk 0:00:07.2]} 33...
Bc8 {[%clk 0:00:15.3]} 34. Nc5 {[%clk 0:00:06.2]} 34... Qc6 {[%clk 0:00:12.9]}
35. Nxe6+ {[%clk 0:00:05.5]} 35... Kd7 {[%clk 0:00:13.5]} 36. Rxc6 {[%clk
0:00:06.1]} 36... Kxc6 {[%clk 0:00:13.9]} 37. Nc7 {[%clk 0:00:05.7]} 37... Kxd6
{[%clk 0:00:13.5]} 38. Nxd5+ {[%clk 0:00:04.8]} 38... Kxd5 {[%clk 0:00:14]} 39.
Qb5+ {[%clk 0:00:05.3]} 39... Kxd4 {[%clk 0:00:13.3]} 40. Ng6 {[%clk 0:00:05.7]}
40... Rd8 {[%clk 0:00:11.8]} 41. Qb6+ {[%clk 0:00:05.9]} 41... Ke4 {[%clk
0:00:08.2]} 42. Qxd8 {[%clk 0:00:06.5]} 42... Bxb2 {[%clk 0:00:08.5]} 43. Qxc8
{[%clk 0:00:06.5]} 1-0

[Event "*** SCC Grand Prix: Titled Tuesday Blitz"]
[Site "Chess.com"]
[Date "2020.10.06"]
[Round "1"]
[White "ferch1ni"]
[Black "mirceaparligras"]
[Result "1-0"]
[WhiteElo "2377"]
[BlackElo "2659"]
[TimeControl "180+1"]
[EndTime "10:07:36 PDT"]
[Termination "ferch1ni won by checkmate"]

1. e4 {[%clk 0:03:00.6]} 1... c5 {[%clk 0:02:58.5]} 2. Nf3 {[%clk 0:03:00.2]}
2... d6 {[%clk 0:02:59]} 3. d4 {[%clk 0:03:00.4]} 3... cxd4 {[%clk 0:02:59.3]}
4. Nxd4 {[%clk 0:03:01.3]} 4... Nf6 {[%clk 0:02:59.8]} 5. Bd3 {[%clk 0:02:58.5]}
5... Nc6 {[%clk 0:02:58.1]} 6. Nb3 {[%clk 0:02:56.8]} 6... g6 {[%clk 0:02:50.7]}
7. O-O {[%clk 0:02:56]} 7... Bg7 {[%clk 0:02:50.8]} 8. c3 {[%clk 0:02:53.5]}
8... O-O {[%clk 0:02:50]} 9. Bg5 {[%clk 0:02:53.1]} 9... b6 {[%clk 0:02:34.3]}
10. N1d2 {[%clk 0:02:51.5]} 10... Bb7 {[%clk 0:02:32.6]} 11. Qe2 {[%clk
0:02:43.7]} 11... Nd7 {[%clk 0:02:22.2]} 12. Rae1 {[%clk 0:02:39.8]} 12... Nc5
{[%clk 0:02:20.2]} 13. Bb1 {[%clk 0:02:38.4]} 13... Ba6 {[%clk 0:02:17]} 14. c4
{[%clk 0:02:06]} 14... Bxb2 {[%clk 0:02:14.5]} 15. f4 {[%clk 0:01:57.8]} 15...
Bg7 {[%clk 0:02:12.9]} 16. Kh1 {[%clk 0:01:46.5]} 16... Rc8 {[%clk 0:02:03.1]}
17. f5 {[%clk 0:01:35.6]} 17... Ne5 {[%clk 0:01:56]} 18. h4 {[%clk 0:01:18]}
18... Na4 {[%clk 0:01:49]} 19. Qe3 {[%clk 0:00:47.5]} 19... Nxc4 {[%clk
0:01:42.6]} 20. Nxc4 {[%clk 0:00:47.5]} 20... Rxc4 {[%clk 0:01:36.7]} 21. e5
{[%clk 0:00:43.6]} 21... Bxe5 {[%clk 0:01:16.2]} 22. fxg6 {[%clk 0:00:31.5]}
22... fxg6 {[%clk 0:01:08.9]} 23. h5 {[%clk 0:00:25]} 23... Rc3 {[%clk
0:00:44.3]} 24. Rxf8+ {[%clk 0:00:16.8]} 24... Qxf8 {[%clk 0:00:43.6]} 25. Qe4
{[%clk 0:00:16.4]} 25... Rc4 {[%clk 0:00:36.5]} 26. Qd5+ {[%clk 0:00:15.7]}
26... Qf7 {[%clk 0:00:36]} 27. Qa8+ {[%clk 0:00:14.6]} 27... Rc8 {[%clk
0:00:33.4]} 28. Qxa7 {[%clk 0:00:14.6]} 28... Bb5 {[%clk 0:00:28.5]} 29. Be4
{[%clk 0:00:10.3]} 29... Nc5 {[%clk 0:00:19.5]} 30. Nxc5 {[%clk 0:00:09.9]}
30... bxc5 {[%clk 0:00:18.6]} 31. Qb7 {[%clk 0:00:10]} 31... Qe8 {[%clk
0:00:16.1]} 32. Bd5+ {[%clk 0:00:08.1]} 32... Kh8 {[%clk 0:00:15.1]} 33. Bxe7
{[%clk 0:00:07.8]} 33... Bg7 {[%clk 0:00:10.8]} 34. Re4 {[%clk 0:00:06.3]} 34...
Rb8 {[%clk 0:00:10.3]} 35. Qa7 {[%clk 0:00:05.8]} 35... Bd3 {[%clk 0:00:07.5]}
36. Re3 {[%clk 0:00:04.9]} 36... Rb1+ {[%clk 0:00:06.7]} 37. Kh2 {[%clk
0:00:04.9]} 37... Bf5 {[%clk 0:00:06.9]} 38. Bf6 {[%clk 0:00:03.7]} 38... Qb8
{[%clk 0:00:01.7]} 39. Qxg7# {[%clk 0:00:03.6]} 1-0

[Event "*** SCC Grand Prix: Titled Tuesday Blitz"]
[Site "Chess.com"]
[Date "2020.10.06"]
[Round "1"]
[White "Balla_Tamas"]
[Black "Anton_Demchenko"]
[Result "0-1"]
[WhiteElo "2433"]
[BlackElo "2836"]
[TimeControl "180+1"]
[EndTime "10:07:38 PDT"]
[Termination "Anton_Demchenko won by resignation"]

1. e4 {[%clk 0:02:58.8]} 1... e5 {[%clk 0:02:57]} 2. Nf3 {[%clk 0:02:57.5]} 2...
Nc6 {[%clk 0:02:56.2]} 3. d4 {[%clk 0:02:57]} 3... exd4 {[%clk 0:02:54.6]} 4.
Nxd4 {[%clk 0:02:57.1]} 4... Nf6 {[%clk 0:02:52.1]} 5. Nxc6 {[%clk 0:02:53.7]}
5... dxc6 {[%clk 0:02:49.9]} 6. Qxd8+ {[%clk 0:02:48.2]} 6... Kxd8 {[%clk
0:02:50.8]} 7. Bg5 {[%clk 0:02:44.7]} 7... h6 {[%clk 0:02:48]} 8. Bxf6+ {[%clk
0:02:43.8]} 8... gxf6 {[%clk 0:02:45.8]} 9. Nd2 {[%clk 0:02:41.5]} 9... Bc5
{[%clk 0:02:41.6]} 10. Nb3 {[%clk 0:02:37.4]} 10... Bb6 {[%clk 0:02:40.7]} 11.
O-O-O+ {[%clk 0:02:36.8]} 11... Ke7 {[%clk 0:02:40.7]} 12. f3 {[%clk 0:02:33.4]}
12... f5 {[%clk 0:02:34.9]} 13. exf5 {[%clk 0:02:32.1]} 13... Bxf5 {[%clk
0:02:33.8]} 14. Bd3 {[%clk 0:02:32.7]} 14... Be6 {[%clk 0:02:31.3]} 15. Rhe1
{[%clk 0:02:31.2]} 15... Kf6 {[%clk 0:02:30.1]} 16. Nd2 {[%clk 0:02:28.7]} 16...
Rad8 {[%clk 0:02:24.4]} 17. Nc4 {[%clk 0:02:18.5]} 17... Bc5 {[%clk 0:02:17.7]}
18. Na5 {[%clk 0:02:08.5]} 18... Bb4 {[%clk 0:01:43.4]} 19. Nxb7 {[%clk
0:02:06.6]} 19... Rb8 {[%clk 0:01:44]} 20. c3 {[%clk 0:02:06.2]} 20... Bxc3
{[%clk 0:01:44.2]} 21. bxc3 {[%clk 0:01:59.1]} 21... Rxb7 {[%clk 0:01:44.2]} 22.
Rd2 {[%clk 0:01:54.5]} 22... Rhb8 {[%clk 0:01:43]} 23. Ree2 {[%clk 0:01:44.8]}
23... Rb6 {[%clk 0:01:34.2]} 24. Rb2 {[%clk 0:01:43.7]} 24... c5 {[%clk
0:01:33.4]} 25. Be4 {[%clk 0:01:36.9]} 25... h5 {[%clk 0:01:25.5]} 26. g3 {[%clk
0:01:36.7]} 26... h4 {[%clk 0:01:22.6]} 27. f4 {[%clk 0:01:34.6]} 27... hxg3
{[%clk 0:01:19.6]} 28. hxg3 {[%clk 0:01:35.3]} 28... Rg8 {[%clk 0:01:20]} 29.
Re3 {[%clk 0:01:32]} 29... Rh8 {[%clk 0:01:03.4]} 30. f5 {[%clk 0:01:13.7]}
30... Bc4 {[%clk 0:00:59.5]} 31. g4 {[%clk 0:01:05]} 31... Rxb2 {[%clk
0:00:49.4]} 32. Kxb2 {[%clk 0:01:04.7]} 32... Re8 {[%clk 0:00:50.2]} 33. Kc2
{[%clk 0:00:38.3]} 33... Bxa2 {[%clk 0:00:45.2]} 34. Kd2 {[%clk 0:00:36.9]}
34... Kg5 {[%clk 0:00:40.6]} 35. Bf3 {[%clk 0:00:35.1]} 35... Rxe3 {[%clk
0:00:31.1]} 36. Kxe3 {[%clk 0:00:36]} 36... a5 {[%clk 0:00:30.5]} 37. Bd1 {[%clk
0:00:35.5]} 37... f6 {[%clk 0:00:28.1]} 38. Kf3 {[%clk 0:00:34.5]} 38... Bd5+
{[%clk 0:00:27]} 39. Kg3 {[%clk 0:00:34.4]} 39... Be4 {[%clk 0:00:26]} 40. Bb3
{[%clk 0:00:33.4]} 40... Bc6 {[%clk 0:00:21.3]} 41. Bc4 {[%clk 0:00:30.7]} 41...
a4 {[%clk 0:00:20.1]} 42. Ba2 {[%clk 0:00:27.4]} 42... a3 {[%clk 0:00:20.6]} 43.
Bb3 {[%clk 0:00:26.9]} 43... Be4 {[%clk 0:00:19.3]} 44. Bc4 {[%clk 0:00:19.6]}
44... c6 {[%clk 0:00:19.4]} 45. Bb3 {[%clk 0:00:19.3]} 45... Bd5 {[%clk
0:00:18.8]} 46. c4 {[%clk 0:00:15]} 46... Be4 {[%clk 0:00:19.4]} 47. Ba2 {[%clk
0:00:13.9]} 47... Bc2 {[%clk 0:00:19.7]} 48. Kf3 {[%clk 0:00:14.4]} 48... Bd1+
{[%clk 0:00:20]} 0-1

[Event "*** SCC Grand Prix: Titled Tuesday Blitz"]
[Site "Chess.com"]
[Date "2020.10.06"]
[Round "1"]
[White "canary2016"]
[Black "karwowskikacper"]
[Result "0-1"]
[WhiteElo "1913"]
[BlackElo "2479"]
[TimeControl "180+1"]
[EndTime "10:07:38 PDT"]
[Termination "karwowskikacper won by checkmate"]

1. d4 {[%clk 0:03:00.4]} 1... Nf6 {[%clk 0:02:34]} 2. c4 {[%clk 0:02:59]} 2...
e6 {[%clk 0:02:33.2]} 3. g3 {[%clk 0:02:58.2]} 3... c5 {[%clk 0:02:31.7]} 4. d5
{[%clk 0:02:57.3]} 4... exd5 {[%clk 0:02:32.6]} 5. cxd5 {[%clk 0:02:57.2]} 5...
d6 {[%clk 0:02:33.2]} 6. Bg2 {[%clk 0:02:57.2]} 6... g6 {[%clk 0:02:33.5]} 7.
Nf3 {[%clk 0:02:56.8]} 7... Bg7 {[%clk 0:02:32.3]} 8. O-O {[%clk 0:02:56.8]}
8... O-O {[%clk 0:02:33.2]} 9. Nc3 {[%clk 0:02:56.3]} 9... a6 {[%clk 0:02:31.6]}
10. a4 {[%clk 0:02:56.1]} 10... Re8 {[%clk 0:02:32.3]} 11. Bf4 {[%clk 0:02:54]}
11... Ne4 {[%clk 0:02:22.9]} 12. Nxe4 {[%clk 0:02:45.1]} 12... Rxe4 {[%clk
0:02:23.8]} 13. Ra2 {[%clk 0:02:42.3]} 13... Rb4 {[%clk 0:02:11.9]} 14. Qd2
{[%clk 0:02:39.5]} 14... Bg4 {[%clk 0:01:57.8]} 15. h3 {[%clk 0:02:37.3]} 15...
Bxf3 {[%clk 0:01:55.8]} 16. Bxf3 {[%clk 0:02:37.3]} 16... Qd7 {[%clk 0:01:33.9]}
17. Bg2 {[%clk 0:02:34.7]} 17... a5 {[%clk 0:01:27.5]} 18. Qc2 {[%clk
0:02:31.5]} 18... Na6 {[%clk 0:01:25.4]} 19. Bd2 {[%clk 0:02:26.3]} 19... Re8
{[%clk 0:01:19.4]} 20. Bxb4 {[%clk 0:02:23.8]} 20... Nxb4 {[%clk 0:01:20.3]} 21.
Qb3 {[%clk 0:02:20.9]} 21... Nxa2 {[%clk 0:01:20.4]} 22. Qxa2 {[%clk 0:02:20.8]}
22... Rxe2 {[%clk 0:01:21.3]} 23. Qb3 {[%clk 0:02:19.6]} 23... Rxb2 {[%clk
0:01:19.9]} 24. Qc4 {[%clk 0:02:13.8]} 24... Rb4 {[%clk 0:01:02.2]} 25. Qe2
{[%clk 0:02:12.2]} 25... Rxa4 {[%clk 0:00:54.9]} 26. Rb1 {[%clk 0:02:10.3]}
26... Rb4 {[%clk 0:00:54.6]} 27. Re1 {[%clk 0:02:08.6]} 27... a4 {[%clk
0:00:52.5]} 28. Qd3 {[%clk 0:01:57.1]} 28... Bb2 {[%clk 0:00:39.3]} 29. Kh2
{[%clk 0:01:47.6]} 29... a3 {[%clk 0:00:36.8]} 30. h4 {[%clk 0:01:47.3]} 30...
a2 {[%clk 0:00:23.4]} 31. Bh3 {[%clk 0:01:46.3]} 31... Qd8 {[%clk 0:00:20.2]}
32. Qd2 {[%clk 0:00:59.4]} 32... a1=Q {[%clk 0:00:19.5]} 33. Rxa1 {[%clk
0:00:57.8]} 33... Bxa1 {[%clk 0:00:20.4]} 34. Qh6 {[%clk 0:00:56.2]} 34... Bg7
{[%clk 0:00:20.5]} 35. Qe3 {[%clk 0:00:53.9]} 35... h5 {[%clk 0:00:20.5]} 36.
Qa3 {[%clk 0:00:46.3]} 36... Qf6 {[%clk 0:00:20.2]} 37. Qe3 {[%clk 0:00:40.8]}
37... Rb2 {[%clk 0:00:19.6]} 38. Kg2 {[%clk 0:00:34.4]} 38... Kh7 {[%clk
0:00:19.7]} 39. Bd7 {[%clk 0:00:31.1]} 39... Qd4 {[%clk 0:00:19]} 40. Qf3 {[%clk
0:00:26.1]} 40... b5 {[%clk 0:00:19]} 41. Qxf7 {[%clk 0:00:21.2]} 41... Qf6
{[%clk 0:00:18.9]} 42. Be6 {[%clk 0:00:13]} 42... Qxf7 {[%clk 0:00:18.3]} 43.
Bxf7 {[%clk 0:00:13]} 43... Rd2 {[%clk 0:00:18.8]} 44. Kg1 {[%clk 0:00:10]}
44... b4 {[%clk 0:00:19.7]} 45. Be8 {[%clk 0:00:09.3]} 45... b3 {[%clk
0:00:19.8]} 46. Bb5 {[%clk 0:00:05.9]} 46... b2 {[%clk 0:00:20.7]} 47. Kg2
{[%clk 0:00:04.7]} 47... b1=Q {[%clk 0:00:21.1]} 48. Bc4 {[%clk 0:00:03.8]}
48... Qe4+ {[%clk 0:00:21.3]} 49. Kh2 {[%clk 0:00:03.1]} 49... Qxc4 {[%clk
0:00:22.2]} 50. Kg2 {[%clk 0:00:03]} 50... Qe2 {[%clk 0:00:22.7]} 51. Kh1 {[%clk
0:00:02.6]} 51... Qxf2 {[%clk 0:00:22.5]} 52. g4 {[%clk 0:00:02.9]} 52... Qh2#
{[%clk 0:00:23.4]} 0-1

[Event "*** SCC Grand Prix: Titled Tuesday Blitz"]
[Site "Chess.com"]
[Date "2020.10.06"]
[Round "1"]
[White "Leonid_Starozhilov"]
[Black "Ladislav1969"]
[Result "1-0"]
[WhiteElo "2683"]
[BlackElo "2359"]
[TimeControl "180+1"]
[EndTime "10:07:39 PDT"]
[Termination "Leonid_Starozhilov won by resignation"]

1. e4 {[%clk 0:03:00.9]} 1... c5 {[%clk 0:02:59.4]} 2. Nf3 {[%clk 0:03:00.7]}
2... e6 {[%clk 0:03:00.1]} 3. b3 {[%clk 0:02:59]} 3... Nc6 {[%clk 0:02:57.7]} 4.
Bb5 {[%clk 0:02:57.9]} 4... Nge7 {[%clk 0:02:52.4]} 5. Bb2 {[%clk 0:02:58]} 5...
a6 {[%clk 0:02:51.4]} 6. Bxc6 {[%clk 0:02:57.8]} 6... Nxc6 {[%clk 0:02:50.9]} 7.
O-O {[%clk 0:02:57.1]} 7... d6 {[%clk 0:02:50.7]} 8. d4 {[%clk 0:02:56.6]} 8...
cxd4 {[%clk 0:02:49.9]} 9. Nxd4 {[%clk 0:02:57.5]} 9... Bd7 {[%clk 0:02:49.8]}
10. c4 {[%clk 0:02:57.2]} 10... Rc8 {[%clk 0:02:45.2]} 11. Nc3 {[%clk
0:02:56.1]} 11... Be7 {[%clk 0:02:41.7]} 12. a4 {[%clk 0:02:50.5]} 12... O-O
{[%clk 0:02:37.7]} 13. Nxc6 {[%clk 0:02:30.5]} 13... Bxc6 {[%clk 0:02:37]} 14.
Qd3 {[%clk 0:02:29.7]} 14... Qb6 {[%clk 0:02:29.2]} 15. Qd1 {[%clk 0:02:17.4]}
15... Rfd8 {[%clk 0:02:27.7]} 16. Re1 {[%clk 0:02:08]} 16... Bf6 {[%clk
0:02:26.8]} 17. a5 {[%clk 0:02:01.3]} 17... Qc7 {[%clk 0:02:13.3]} 18. Qd2
{[%clk 0:01:57.2]} 18... Rd7 {[%clk 0:02:00.5]} 19. h3 {[%clk 0:01:53.1]} 19...
Rcd8 {[%clk 0:02:00.3]} 20. Nd5 {[%clk 0:01:51.2]} 20... exd5 {[%clk 0:00:58.9]}
21. Bxf6 {[%clk 0:01:50.1]} 21... gxf6 {[%clk 0:00:56.3]} 22. exd5 {[%clk
0:01:50.2]} 22... Re7 {[%clk 0:00:53.8]} 23. dxc6 {[%clk 0:01:48.6]} 23... Rxe1+
{[%clk 0:00:52.5]} 24. Rxe1 {[%clk 0:01:46.6]} 24... Qxc6 {[%clk 0:00:52.6]} 25.
Re3 {[%clk 0:01:44.9]} 25... Kh8 {[%clk 0:00:45.6]} 26. Re7 {[%clk 0:01:04]}
26... Rg8 {[%clk 0:00:41.8]} 27. Qd5 {[%clk 0:00:42.6]} 27... Qxd5 {[%clk
0:00:27]} 28. cxd5 {[%clk 0:00:43.5]} 28... Rc8 {[%clk 0:00:27]} 29. Rxb7 {[%clk
0:00:23.3]} 29... Rc1+ {[%clk 0:00:27.4]} 30. Kh2 {[%clk 0:00:23.1]} 30... Rc5
{[%clk 0:00:28.3]} 31. b4 {[%clk 0:00:22.5]} 31... Rxd5 {[%clk 0:00:27.8]} 32.
Rxf7 {[%clk 0:00:14]} 32... Rf5 {[%clk 0:00:25.9]} 33. Rd7 {[%clk 0:00:10.9]}
33... Rxf2 {[%clk 0:00:24.6]} 34. Rxd6 {[%clk 0:00:10.6]} 34... Rb2 {[%clk
0:00:24.5]} 35. Rxf6 {[%clk 0:00:08.9]} 35... Rxb4 {[%clk 0:00:24.1]} 36. Rxa6
{[%clk 0:00:09.6]} 36... Kg7 {[%clk 0:00:24.1]} 37. Rb6 {[%clk 0:00:09.6]} 37...
Ra4 {[%clk 0:00:23.6]} 38. a6 {[%clk 0:00:10.1]} 38... Kf7 {[%clk 0:00:23.3]}
39. g4 {[%clk 0:00:09.8]} 39... Kg7 {[%clk 0:00:23.6]} 40. Kg2 {[%clk
0:00:08.6]} 40... Ra3 {[%clk 0:00:23.5]} 41. h4 {[%clk 0:00:08.7]} 41... Kf7
{[%clk 0:00:23.2]} 42. g5 {[%clk 0:00:07.1]} 42... Kg7 {[%clk 0:00:23.1]} 43. h5
{[%clk 0:00:06.3]} 43... Kf7 {[%clk 0:00:21.5]} 44. Rb7+ {[%clk 0:00:06.8]}
44... Kg8 {[%clk 0:00:18.1]} 45. a7 {[%clk 0:00:06.3]} 45... Ra2+ {[%clk
0:00:13.4]} 46. Kf1 {[%clk 0:00:06.7]} 46... Rxa7 {[%clk 0:00:12.1]} 47. Rxa7
{[%clk 0:00:06.5]} 1-0